bitfinex-derivatives/quotes_BTCF0:USTF0_20250724
["timestamp","ask_amount","ask_price","bid_price","bid_amount"]
[1753359238446,0.945187,118630.0,118620.0,0.6768865]
[1753359241257,1.265187,118630.0,118620.0,0.6768865]
[1753359241556,0.945187,118630.0,118620.0,0.6768865]
[1753359242757,0.945187,118630.0,118620.0,0.68510158]
[1753359245555,0.945187,118630.0,118620.0,0.74572302]
[1753359246452,0.915637,118630.0,118620.0,0.68510158]
[1753359247655,0.915637,118630.0,118620.0,1.01510158]
[1753359247957,0.915637,118630.0,118620.0,1.32670261]
[1753359248659,0.915637,118630.0,118620.0,0.96670261]
[1753359249352,0.915637,118630.0,118620.0,1.02732405]
[1753359249553,0.915637,118630.0,118620.0,0.74572302]
[1753359249961,0.915637,118630.0,118620.0,0.68510158]
[1753359250459,0.915637,118630.0,118620.0,0.74572302]
[1753359250660,0.915637,118630.0,118620.0,0.6768865]
[1753359250961,0.915637,118630.0,118620.0,0.73750794]
[1753359251459,0.908637,118630.0,118620.0,0.73750794]
[1753359251960,1.268637,118630.0,118620.0,0.73750794]
[1753359252160,0.937197,118630.0,118620.0,0.73750794]
[1753359252459,1.257197,118630.0,118620.0,0.73750794]
[1753359252860,1.53879803,118630.0,118620.0,0.69811794]
[1753359253251,1.53879803,118630.0,118620.0,0.73771794]
[1753359253957,1.257197,118630.0,118620.0,0.73771794]
[1753359255154,0.2514294,118630.0,118620.0,1.33931897]
[1753359255355,0.8644694,118630.0,118620.0,1.33931897]
[1753359255549,0.8331994,118630.0,118620.0,1.33931897]
[1753359256962,0.8331994,118630.0,118620.0,0.73771794]
[1753359257161,0.8331994,118630.0,118620.0,1.01931897]
[1753359257458,0.2116394,118630.0,118620.0,1.01931897]
[1753359257658,0.2116394,118630.0,118620.0,1.38931897]
[1753359257858,0.8332394,118630.0,118620.0,1.38931897]
[1753359258563,0.8332394,118630.0,118620.0,1.01931897]
[1753359258958,0.8332394,118630.0,118620.0,1.39931897]
[1753359259163,0.8516994,118630.0,118620.0,1.39931897]
[1753359259458,0.8740294,118630.0,118620.0,1.01931897]
[1753359260263,0.9025894,118630.0,118620.0,0.73771794]
[1753359260462,1.53419043,118630.0,118620.0,0.71571794]
[1753359260762,1.53419043,118630.0,118620.0,0.73771794]
[1753359261858,1.2525894,118630.0,118620.0,0.73771794]
[1753359262063,1.53419043,118630.0,118620.0,0.73771794]
[1753359262962,1.2240294,118630.0,118620.0,0.73771794]
[1753359265865,1.2525894,118630.0,118620.0,0.73771794]
[1753359266366,1.2240294,118630.0,118620.0,0.73771794]
[1753359268571,1.2240294,118630.0,118620.0,1.01931897]
[1753359269572,1.2240294,118630.0,118620.0,0.73771794]
[1753359270067,1.53322043,118630.0,118620.0,0.73771794]
[1753359270367,1.53322043,118630.0,118620.0,1.31869753]
[1753359270368,0.001,118630.0,118620.0,1.31869753]
[1753359270672,0.001,118630.0,118620.0,1.37938029]
[1753359270870,0.61988,118630.0,118620.0,1.54798029]
[1753359271568,0.001,118630.0,118620.0,1.54798029]
[1753359271767,1.4186069,118650.0,118640.0,0.3123481]
[1753359271971,2.0372069,118650.0,118640.0,1.3439481]
[1753359272276,2.163467,118650.0,118640.0,1.62554913]
[1753359274674,2.163467,118650.0,118640.0,1.3439481]
[1753359274973,2.163467,118650.0,118640.0,1.62554913]
[1753359277975,0.913334,118650.0,118640.0,1.62554913]
[1753359278184,0.7870739,118650.0,118640.0,1.62554913]
[1753359278366,0.7870739,118650.0,118640.0,1.33554913]
[1753359278565,0.7870739,118650.0,118640.0,1.68554913]
[1753359278968,0.6186,118650.0,118640.0,1.68554913]
[1753359279168,0.7870739,118650.0,118640.0,1.68554913]
[1753359279363,0.6186,118650.0,118640.0,1.68554913]
[1753359280775,0.6186,118650.0,118640.0,1.68654913]
[1753359281574,0.7870739,118650.0,118640.0,1.68754913]
[1753359281781,0.7870739,118650.0,118640.0,1.74820765]
[1753359282279,0.6186,118650.0,118640.0,1.76560488]
[1753359283185,0.7870739,118650.0,118640.0,1.70494636]
[1753359285083,0.7870739,118650.0,118640.0,1.76560488]
[1753359287081,0.8545639,118650.0,118640.0,1.48400385]
[1753359287285,1.10857493,118650.0,118640.0,1.44400385]
[1753359287589,0.8545639,118650.0,118640.0,1.44400385]
[1753359288384,0.8545639,118650.0,118640.0,1.44200385]
[1753359288584,0.8565639,118650.0,118640.0,1.72360488]
[1753359291693,0.8444939,118650.0,118640.0,1.72360488]
[1753359291890,0.2258939,118650.0,118640.0,1.72360488]
[1753359292199,0.7832339,118650.0,118640.0,1.72360488]
[1753359292793,0.002,118650.0,118640.0,1.72360488]
[1753359292995,0.7831139,118650.0,118640.0,1.72360488]
[1753359294897,0.7821139,118650.0,118640.0,1.72360488]
[1753359295099,0.61272,118650.0,118640.0,1.72360488]
[1753359295294,0.7811939,118650.0,118640.0,1.72360488]
[1753359295902,0.61272,118650.0,118640.0,1.72360488]
[1753359296198,0.7811939,118650.0,118640.0,1.72360488]
[1753359296401,0.61272,118650.0,118640.0,1.72360488]
[1753359296699,0.61172,118650.0,118640.0,1.72360488]
[1753359296900,0.7801939,118650.0,118640.0,1.72360488]
[1753359297400,0.7801939,118650.0,118640.0,1.66294636]
[1753359298203,0.61172,118650.0,118640.0,1.66294636]
[1753359298501,0.7801939,118650.0,118640.0,1.66294636]
[1753359298898,0.3483012,118660.0,118650.0,0.2232739]
[1753359299201,0.9599012,118660.0,118650.0,1.37125227]
[1753359299693,0.9443812,118660.0,118650.0,1.37125227]
[1753359299890,0.8643032,118660.0,118650.0,1.37125227]
[1753359300600,0.8798232,118660.0,118650.0,1.37125227]
[1753359300799,0.9288732,118660.0,118650.0,1.03965124]
[1753359301003,0.9288732,118660.0,118650.0,1.01125227]
[1753359301198,1.55147423,118660.0,118650.0,0.48992734]
[1753359301405,0.2064339,118650.0,118640.0,0.12979457]
[1753359301598,0.85464493,118650.0,118640.0,0.23772533]
[1753359301794,0.98025994,118650.0,118640.0,0.04331723]
[1753359302001,0.97025994,118650.0,118640.0,0.01739723]
[1753359302495,0.97025994,118650.0,118640.0,0.04331723]
[1753359302696,0.97025994,118650.0,118640.0,0.21180523]
[1753359302903,0.97025994,118650.0,118640.0,0.23772523]
[1753359303098,0.97025994,118650.0,118640.0,0.06923723]
[1753359303501,0.35865891,118650.0,118640.0,0.23772533]
[1753359303701,1.00025994,118650.0,118640.0,0.23772533]
[1753359304499,1.00025994,118650.0,118640.0,0.29828267]
[1753359305108,1.00125994,118650.0,118640.0,0.29828267]
[1753359306499,0.35965891,118650.0,118640.0,0.72603267]
[1753359306703,0.34856891,118650.0,118640.0,1.27810636]
[1753359306899,0.7795139,118650.0,118640.0,1.27810636]
[1753359307295,0.61104,118650.0,118640.0,1.27810636]
[1753359307903,0.61212,118650.0,118640.0,1.3386637]
[1753359308296,0.61112,118650.0,118640.0,1.27810636]
[1753359308502,0.61112,118650.0,118640.0,1.35388316]
[1753359308909,0.61112,118650.0,118640.0,1.27810636]
[1753359309098,0.61112,118650.0,118640.0,1.35388316]
[1753359310008,0.61112,118650.0,118640.0,1.07228213]
[1753359310209,0.61112,118650.0,118640.0,1.35388316]
[1753359311716,0.61112,118650.0,118640.0,1.35488316]
[1753359312215,0.7795938,118650.0,118640.0,1.35488316]
[1753359312415,0.7795938,118650.0,118640.0,1.27910636]
[1753359312809,0.7795938,118650.0,118640.0,1.35488316]
[1753359313007,0.7805938,118650.0,118640.0,1.07328213]
[1753359313207,0.7961138,118650.0,118640.0,1.35488316]
[1753359313403,0.8340738,118650.0,118640.0,1.07328213]
[1753359313711,0.8330738,118650.0,118640.0,0.86328213]
[1753359313920,0.8436938,118650.0,118640.0,1.38588316]
[1753359314418,0.8330738,118650.0,118640.0,1.38588316]
[1753359315112,0.8330738,118650.0,118640.0,1.38488316]
[1753359315813,0.8330738,118650.0,118640.0,1.10228213]
[1753359316013,0.8330738,118650.0,118640.0,1.38388316]
[1753359316719,0.8436938,118650.0,118640.0,0.76228213]
[1753359316909,0.8436938,118650.0,118640.0,1.35388316]
[1753359317105,0.7795938,118650.0,118640.0,1.35388316]
[1753359317417,0.7951138,118650.0,118640.0,1.35388316]
[1753359318912,0.8120138,118650.0,118640.0,1.35388316]
[1753359319514,0.8120138,118650.0,118640.0,1.07228213]
[1753359319718,0.8330738,118650.0,118640.0,1.07228213]
[1753359319920,0.8330738,118650.0,118640.0,1.27810636]
[1753359320922,0.8330738,118650.0,118640.0,0.99650533]
[1753359321219,0.8330738,118650.0,118640.0,1.27810636]
[1753359321723,0.8330738,118650.0,118640.0,0.99650533]
[1753359322020,0.8330738,118650.0,118640.0,1.27810636]
[1753359322619,0.8330738,118650.0,118640.0,1.35388316]
[1753359324220,0.8330738,118650.0,118640.0,1.07228213]
[1753359324613,0.8330738,118650.0,118640.0,1.35388316]
[1753359325220,0.8330738,118650.0,118640.0,1.27810636]
[1753359326522,0.8330738,118650.0,118640.0,1.3387104]
[1753359328211,0.8330738,118650.0,118640.0,1.05710937]
[1753359328624,0.8330738,118650.0,118640.0,1.3387104]
[1753359335331,0.8330738,118650.0,118640.0,1.27810636]
[1753359335628,0.8430338,118650.0,118640.0,1.35626276]
[1753359336126,1.46463483,118650.0,118640.0,0.10342723]
[1753359336325,1.46463483,118650.0,118640.0,0.11909403]
[1753359336529,1.5907806,118650.0,118640.0,0.10398819]
[1753359336736,1.5907806,118650.0,118640.0,0.46478819]
[1753359336925,1.5907806,118650.0,118640.0,0.10398819]
[1753359337326,1.5917806,118650.0,118640.0,0.10398819]
[1753359337529,1.5917806,118650.0,118640.0,0.04331723]
[1753359337733,1.5917806,118650.0,118640.0,0.10398819]
[1753359338027,1.5947806,118650.0,118640.0,0.10398819]
[1753359338235,1.5957806,118650.0,118640.0,0.10398819]
[1753359338433,1.2757806,118650.0,118640.0,0.04331723]
[1753359338637,1.5657806,118650.0,118640.0,0.04331723]
[1753359339633,1.6157806,118650.0,118640.0,0.04331723]
[1753359340238,0.2332077,118640.0,118630.0,0.08743096]
[1753359340432,0.2332219,118630.0,118620.0,0.08743096]
[1753359340632,0.2332361,118620.0,118610.0,0.63271039]
[1753359340937,0.2332361,118620.0,118610.0,0.75661719]
[1753359341535,0.2332361,118620.0,118610.0,0.7480063]
[1753359342228,0.2332361,118620.0,118610.0,0.7328271]
[1753359342428,0.2332361,118620.0,118610.0,0.7338271]
[1753359342635,0.2332361,118620.0,118610.0,0.6732295]
[1753359343741,0.30079345,118620.0,118610.0,0.6732295]
[1753359344534,0.62079345,118620.0,118610.0,0.6732295]
[1753359346946,0.62079345,118620.0,118610.0,0.6742295]
[1753359349537,0.30079345,118620.0,118610.0,0.6742295]
[1753359350245,0.66079345,118620.0,118610.0,0.6742295]
[1753359355344,0.94239448,118620.0,118610.0,0.5057]
[1753359355740,1.42895989,118620.0,118610.0,0.1449]
[1753359355941,1.42895989,118620.0,118610.0,0.02876]
[1753359358347,2.03115989,118620.0,118610.0,0.02876]
[1753359360552,1.74955886,118620.0,118610.0,0.02876]
[1753359360747,1.38851886,118620.0,118610.0,0.10435]
[1753359360948,1.38851886,118620.0,118610.0,0.14228]
[1753359361144,1.67011989,118620.0,118610.0,0.14228]
[1753359361456,1.67011989,118620.0,118610.0,0.10951]
[1753359361952,1.67011989,118620.0,118610.0,0.04621]
[1753359362354,2.03091989,118620.0,118610.0,0.04621]
[1753359362656,0.2303792,118610.0,118600.0,0.025]
[1753359362951,1.36845148,118610.0,118600.0,0.00023]
[1753359363761,1.08685045,118610.0,118600.0,0.00023]
[1753359363948,1.36845148,118610.0,118600.0,0.00023]
[1753359364151,1.36845148,118610.0,118600.0,0.00223]
[1753359364456,1.97069148,118610.0,118600.0,0.00223]
[1753359364754,1.97069148,118610.0,118600.0,0.00423]
[1753359365149,1.98903734,118610.0,118600.0,0.00423]
[1753359365350,1.38679734,118610.0,118600.0,0.00423]
[1753359365749,1.98887734,118610.0,118600.0,0.03057]
[1753359366158,1.98887734,118610.0,118600.0,0.00423]
[1753359374363,1.70727631,118610.0,118600.0,0.00423]
[1753359374555,1.98887734,118610.0,118600.0,0.00423]
[1753359375361,1.70727631,118610.0,118600.0,0.00423]
[1753359375956,1.98887734,118610.0,118600.0,0.00423]
[1753359381470,1.98887734,118610.0,118600.0,0.03057]
[1753359382469,1.98887734,118610.0,118600.0,0.00423]
[1753359385771,0.1685437,118600.0,118590.0,0.02634]
[1753359386069,1.29523373,118600.0,118590.0,0.02634]
[1753359386972,1.29523373,118600.0,118590.0,0.02934]
[1753359387373,1.29523373,118600.0,118590.0,0.03134]
[1753359389073,1.29523373,118600.0,118590.0,0.04777]
[1753359390078,3.05979373,118600.0,118590.0,0.07243]
[1753359390382,3.05979373,118600.0,118590.0,0.03134]
[1753359394080,3.05987373,118600.0,118590.0,0.03134]
[1753359395574,3.05994349,118600.0,118590.0,0.03134]
[1753359395783,2.46158349,118600.0,118590.0,0.03134]
[1753359395977,3.05986349,118600.0,118590.0,0.03134]
[1753359396169,0.31290246,118600.0,118590.0,0.78669103]
[1753359396370,0.18695932,118600.0,118590.0,0.95524893]
[1753359396573,0.2528097,118610.0,118600.0,0.3053737]
[1753359396779,0.8518097,118610.0,118600.0,0.94777473]
[1753359396980,0.8518097,118610.0,118600.0,0.41843103]
[1753359397268,0.8518097,118610.0,118600.0,0.58697473]
[1753359397472,0.8518097,118610.0,118600.0,0.41843103]
[1753359397784,1.98116071,118610.0,118600.0,0.02388]
[1753359398181,1.99992266,118610.0,118600.0,0.02388]
[1753359398381,2.00292266,118610.0,118600.0,0.02388]
[1753359401778,0.1685437,118600.0,118590.0,0.08168]
[1753359401982,1.17918668,118600.0,118590.0,0.08168]
[1753359402184,0.69387908,118600.0,118590.0,0.08168]
[1753359402481,1.32548011,118600.0,118590.0,0.08168]
[1753359402682,1.30723816,118600.0,118590.0,0.08168]
[1753359402981,1.32547808,118600.0,118590.0,0.08168]
[1753359403778,1.30723816,118600.0,118590.0,0.08168]
[1753359403974,1.32547805,118600.0,118590.0,0.08168]
[1753359404376,1.32547805,118600.0,118590.0,0.04854]
[1753359405182,1.4664009,118600.0,118590.0,0.04854]
[1753359405383,1.04387702,118600.0,118590.0,0.04854]
[1753359405687,1.4664009,118600.0,118590.0,0.04854]
[1753359405884,1.4664009,118600.0,118590.0,0.02388]
[1753359406581,1.4664009,118600.0,118590.0,0.04031]
[1753359406892,1.4664009,118600.0,118590.0,0.09811]
[1753359407291,1.44816101,118600.0,118590.0,0.11395]
[1753359407492,1.46639987,118600.0,118590.0,0.11395]
[1753359407990,1.46639987,118600.0,118590.0,0.13683]
[1753359408187,1.10559987,118600.0,118590.0,0.13683]
[1753359408692,1.68664101,118600.0,118590.0,0.13683]
[1753359409584,1.08736101,118600.0,118590.0,0.13683]
[1753359409788,1.68648101,118600.0,118590.0,0.13683]
[1753359410186,2.25360101,118600.0,118590.0,0.13683]
[1753359410389,2.85272101,118600.0,118590.0,0.13683]
[1753359410990,3.21352101,118600.0,118590.0,0.13683]
[1753359411193,2.85272101,118600.0,118590.0,0.13683]
[1753359411593,3.23176065,118600.0,118590.0,0.13683]
[1753359412392,3.23164065,118600.0,118590.0,0.13683]
[1753359412593,2.87083967,118600.0,118590.0,0.13683]
[1753359412797,2.85260101,118600.0,118590.0,0.13683]
[1753359413095,3.23163967,118600.0,118590.0,0.13683]
[1753359413297,3.23163967,118600.0,118590.0,0.02388]
[1753359415298,2.63263967,118600.0,118590.0,0.02388]
[1753359415596,3.23167967,118600.0,118590.0,0.09811]
[1753359416501,3.06313597,118600.0,118580.0,0.3193509]
[1753359416689,1.16314372,118590.0,118580.0,0.0036096]
[1753359417002,0.2046263,118570.0,118560.0,0.5336776]
[1753359417192,1.38536824,118570.0,118560.0,0.5336776]
[1753359417398,1.01536824,118570.0,118560.0,0.7022781]
[1753359417697,1.01536824,118570.0,118560.0,0.47308]
[1753359418297,1.01536824,118570.0,118560.0,0.6416805]
[1753359418799,1.01536824,118570.0,118560.0,0.6673105]
[1753359419299,1.08590072,118570.0,118560.0,0.6673105]
[1753359419500,1.08590072,118570.0,118560.0,0.6683105]
[1753359420088,1.52234655,118570.0,118560.0,0.13891]
[1753359420292,1.88314655,118570.0,118560.0,0.04372]
[1753359420797,1.88314655,118570.0,118560.0,0.02663]
[1753359421395,1.90161789,118570.0,118560.0,0.04372]
[1753359421702,1.88314655,118570.0,118560.0,0.13891]
[1753359421900,1.88314655,118570.0,118560.0,0.13991]
[1753359423295,1.52234655,118570.0,118560.0,0.13991]
[1753359423495,1.88314655,118570.0,118560.0,0.13991]
[1753359423695,1.88314655,118570.0,118560.0,0.3085105]
[1753359423893,1.52234655,118570.0,118560.0,0.3085105]
[1753359424098,1.88314655,118570.0,118560.0,0.13991]
[1753359424302,1.52234655,118570.0,118560.0,0.13991]
[1753359424589,1.88442655,118570.0,118560.0,0.13991]
[1753359424800,1.24183213,118570.0,118560.0,0.13991]
[1753359424999,1.88442655,118570.0,118560.0,0.13991]
[1753359427398,1.28366655,118570.0,118560.0,0.3085105]
[1753359427593,1.22038213,118570.0,118560.0,0.95110492]
[1753359427791,0.89487213,118570.0,118560.0,0.95110492]
[1753359427992,0.7684263,118570.0,118560.0,0.95110492]
[1753359428804,0.7839363,118570.0,118560.0,0.95110492]
[1753359432507,0.1685863,118570.0,118560.0,0.95110492]
[1753359432813,0.7675863,118570.0,118560.0,0.95110492]
[1753359433308,1.44542072,118570.0,118560.0,0.50071]
[1753359433495,1.08542072,118570.0,118560.0,0.6693105]
[1753359433701,1.08542072,118570.0,118560.0,0.3085105]
[1753359433901,0.8036263,118570.0,118560.0,1.0393105]
[1753359434201,0.7830963,118570.0,118560.0,1.0393105]
[1753359434403,0.7827763,118570.0,118560.0,1.0393105]
[1753359435100,0.7826563,118570.0,118560.0,1.0393105]
[1753359435808,0.7826563,118570.0,118560.0,1.32110492]
[1753359436109,0.7825763,118570.0,118560.0,1.32110492]
[1753359436814,0.7825763,118570.0,118560.0,1.0393105]
[1753359437015,0.7825763,118570.0,118560.0,1.32110492]
[1753359438914,0.1840963,118570.0,118560.0,1.32110492]
[1753359439114,0.7825763,118570.0,118560.0,1.32110492]
[1753359439611,0.7825763,118570.0,118560.0,1.36170252]
[1753359440116,0.8031063,118570.0,118560.0,0.6693105]
[1753359441211,1.41490072,118570.0,118560.0,0.13991]
[1753359441416,1.41490072,118570.0,118560.0,0.3085105]
[1753359441711,1.08490072,118570.0,118560.0,0.3085105]
[1753359441912,1.42490072,118570.0,118560.0,0.3085105]
[1753359442218,0.7825763,118570.0,118560.0,1.32110492]
[1753359442412,0.7825763,118570.0,118560.0,1.38170252]
[1753359442611,0.1840963,118570.0,118560.0,1.38170252]
[1753359442824,0.7825763,118570.0,118560.0,1.38170252]
[1753359443014,0.7825763,118570.0,118560.0,1.32110492]
[1753359443417,0.7825763,118570.0,118560.0,0.95110492]
[1753359443716,0.7825763,118570.0,118560.0,1.28110492]
[1753359445021,0.7825763,118570.0,118560.0,0.9993105]
[1753359445219,0.7825763,118570.0,118560.0,0.6693105]
[1753359445411,0.8031063,118570.0,118560.0,1.0393105]
[1753359446720,0.8031063,118570.0,118560.0,1.0093105]
[1753359447021,0.8031063,118570.0,118560.0,1.29110492]
[1753359447716,0.8030663,118570.0,118560.0,1.29110492]
[1753359448219,0.8030663,118570.0,118560.0,1.0093105]
[1753359448820,0.7825363,118570.0,118560.0,1.0699081]
[1753359449519,0.7825363,118570.0,118560.0,1.35170252]
[1753359450421,0.1840963,118570.0,118560.0,1.35170252]
[1753359450621,0.7825363,118570.0,118560.0,1.35170252]
[1753359452425,0.7825363,118570.0,118560.0,1.01170252]
[1753359453324,0.1840963,118570.0,118560.0,1.01170252]
[1753359453526,0.7825363,118570.0,118560.0,1.01170252]
[1753359453820,0.7825363,118570.0,118560.0,0.7299081]
[1753359454125,0.8028363,118570.0,118560.0,0.7299081]
[1753359454422,1.1728363,118570.0,118560.0,0.7299081]
[1753359456726,1.45463072,118570.0,118560.0,0.7299081]
[1753359457528,1.1728363,118570.0,118560.0,0.7299081]
[1753359459126,0.5743963,118570.0,118560.0,0.7299081]
[1753359459327,1.1727963,118570.0,118560.0,0.7299081]
[1753359461529,0.8027963,118570.0,118560.0,0.7299081]
[1753359462127,0.8027563,118570.0,118560.0,0.7299081]
[1753359463030,1.1527563,118570.0,118560.0,0.7299081]
[1753359463233,1.36407579,118570.0,118560.0,0.94122759]
[1753359464734,1.36407579,118570.0,118560.0,0.3691081]
[1753359464933,1.36407579,118570.0,118560.0,0.58042759]
[1753359465233,1.36407579,118570.0,118560.0,0.41182709]
[1753359465432,1.36407579,118570.0,118560.0,0.35122949]
[1753359465636,1.38248616,118570.0,118560.0,0.13991]
[1753359465930,1.17116667,118570.0,118560.0,0.13991]
[1753359466234,1.87025393,118570.0,118560.0,0.13991]
[1753359466429,2.08157342,118570.0,118560.0,0.10616]
[1753359466835,1.87025393,118570.0,118560.0,0.10616]
[1753359467934,2.08157342,118570.0,118560.0,0.02763]
[1753359468134,2.08157342,118570.0,118560.0,0.002]
[1753359469145,1.94078766,118570.0,118560.0,0.002]
[1753359470747,1.65893444,118570.0,118560.0,0.002]
[1753359470944,1.94078766,118570.0,118560.0,0.002]
[1753359473450,1.34242766,118570.0,118560.0,0.002]
[1753359473755,1.94070766,118570.0,118560.0,0.13529]
[1753359474046,1.94070766,118570.0,118560.0,0.3038905]
[1753359474254,1.94070766,118570.0,118560.0,0.13529]
[1753359474951,1.65885444,118570.0,118560.0,0.3038905]
[1753359475151,1.94070766,118570.0,118560.0,0.13529]
[1753359475353,1.92229729,118570.0,118560.0,0.13529]
[1753359475555,1.94068939,118570.0,118560.0,0.3038905]
[1753359475855,1.94068939,118570.0,118560.0,0.13529]
[1753359477953,1.94068939,118570.0,118560.0,0.06171]
[1753359478155,1.94068939,118570.0,118560.0,0.04055]
[1753359478653,1.94068939,118570.0,118560.0,0.002]
[1753359479252,1.34240939,118570.0,118560.0,0.02661]
[1753359479455,1.92225729,118570.0,118560.0,0.02661]
[1753359480153,1.64040407,118570.0,118560.0,0.3067005]
[1753359480458,1.92225729,118570.0,118560.0,0.3067005]
[1753359480656,1.92225729,118570.0,118560.0,0.1381]
[1753359480854,1.92225729,118570.0,118560.0,0.02661]
[1753359481057,1.94075359,118570.0,118560.0,0.02661]
[1753359481261,1.94075359,118570.0,118560.0,0.002]
[1753359481262,1.34251359,118570.0,118560.0,0.002]
[1753359481558,1.94071359,118570.0,118560.0,0.002]
[1753359481955,1.92221729,118570.0,118560.0,0.002]
[1753359482560,0.202299,118540.0,118530.0,0.025]
[1753359482765,1.84164355,118540.0,118530.0,0.025]
[1753359483063,0.1849074,118520.0,118510.0,0.47229]
[1753359483359,1.1305274,118520.0,118510.0,0.47229]
[1753359483562,1.53889296,118520.0,118510.0,0.1361]
[1753359483759,1.51389296,118520.0,118510.0,0.1361]
[1753359484349,0.01507,118500.0,118490.0,0.1003868]
[1753359484556,1.81793912,118500.0,118490.0,0.08033]
[1753359484750,1.96417511,118500.0,118490.0,0.08033]
[1753359484962,1.94503929,118500.0,118490.0,0.10223]
[1753359485263,1.58023929,118500.0,118490.0,0.10223]
[1753359485455,1.92661929,118500.0,118490.0,0.10223]
[1753359485653,1.56581929,118500.0,118490.0,0.10223]
[1753359485851,1.28396607,118500.0,118490.0,0.1933101]
[1753359486160,1.56723929,118500.0,118490.0,0.02461]
[1753359486354,0.2616401,118490.0,118480.0,0.00025646]
[1753359486550,1.24429332,118490.0,118480.0,0.20894086]
[1753359486751,1.06565444,118490.0,118480.0,0.28046086]
[1753359487051,1.06565444,118490.0,118480.0,0.07787646]
[1753359487052,1.96848766,118490.0,118480.0,0.07787646]
[1753359487254,1.96848766,118490.0,118480.0,0.01565646]
[1753359487452,1.37014839,118490.0,118480.0,0.01565646]
[1753359487667,1.96842839,118490.0,118480.0,0.00025646]
[1753359488560,2.25028161,118490.0,118480.0,6e-08]
[1753359488761,2.25128161,118490.0,118480.0,6e-08]
[1753359488960,1.96942839,118490.0,118480.0,6e-08]
[1753359489158,1.97542839,118490.0,118480.0,0.00100006]
[1753359489560,0.2616825,118460.0,118450.0,0.6280022]
[1753359489763,0.8602425,118460.0,118450.0,0.6656522]
[1753359490259,0.59888,118460.0,118450.0,0.94750542]
[1753359490465,0.59888,118460.0,118450.0,0.6656522]
[1753359490654,0.8605627,118460.0,118450.0,0.6656522]
[1753359491161,0.66904,118460.0,118450.0,1.30830542]
[1753359491558,0.281082,118470.0,118460.0,0.3048427]
[1753359491753,0.67032,118470.0,118460.0,0.94749592]
[1753359491963,0.79640544,118470.0,118460.0,0.94749592]
[1753359492160,0.79640544,118470.0,118460.0,0.6656427]
[1753359492473,0.79640544,118470.0,118460.0,0.94749592]
[1753359492764,0.201285,118480.0,118470.0,0.2063785]
[1753359492962,0.768835,118480.0,118470.0,0.94748172]
[1753359493159,0.768835,118480.0,118470.0,0.6656285]
[1753359493461,0.838995,118480.0,118470.0,0.6656285]
[1753359495368,0.844995,118480.0,118470.0,0.6666285]
[1753359495962,0.006,118480.0,118470.0,1.26848172]
[1753359496260,0.34849595,118500.0,118490.0,0.3047995]
[1753359496465,0.94837595,118500.0,118490.0,1.30825272]
[1753359496667,0.94837595,118500.0,118490.0,1.0263995]
[1753359496867,0.06747325,118500.0,118490.0,1.30825272]
[1753359497160,1.12073832,118500.0,118490.0,1.0044995]
[1753359497365,1.14351832,118500.0,118490.0,1.0263995]
[1753359497566,1.14351832,118500.0,118490.0,0.8577]
[1753359498160,1.57995251,118500.0,118490.0,0.4969]
[1753359498361,0.98591251,118500.0,118490.0,0.4979]
[1753359498561,1.58643251,118500.0,118490.0,0.4979]
[1753359499169,1.58927251,118500.0,118490.0,0.4979]
[1753359499360,1.58927251,118500.0,118490.0,0.41756]
[1753359499566,1.95007251,118500.0,118490.0,0.001]
[1753359499766,2.01688045,118500.0,118490.0,0.001]
[1753359501573,2.01688045,118500.0,118490.0,0.02561]
[1753359503374,1.42502723,118500.0,118490.0,0.1371]
[1753359503565,1.70688045,118500.0,118490.0,0.1371]
[1753359503767,1.34608045,118500.0,118490.0,0.1371]
[1753359503968,0.31465304,118500.0,118490.0,0.77975322]
[1753359504274,0.91389304,118500.0,118490.0,0.94845182]
[1753359504471,0.91389304,118500.0,118490.0,0.4979]
[1753359504771,0.91389304,118500.0,118490.0,0.1371]
[1753359504970,1.55654626,118500.0,118490.0,0.1371]
[1753359505165,1.89932626,118500.0,118490.0,0.1371]
[1753359505369,1.89932626,118500.0,118490.0,0.06558]
[1753359505570,2.04548169,118500.0,118490.0,0.001]
[1753359507277,2.04548169,118500.0,118490.0,0.02452]
[1753359507478,1.76362847,118500.0,118490.0,0.02452]
[1753359507669,2.04548169,118500.0,118490.0,0.02452]
[1753359508776,2.04548169,118500.0,118490.0,0.001]
[1753359510081,1.72548169,118500.0,118490.0,0.001]
[1753359510282,2.04548169,118500.0,118490.0,0.001]
[1753359510479,2.04548169,118500.0,118490.0,0.02452]
[1753359511575,1.76362847,118500.0,118490.0,0.02452]
[1753359511780,2.04548169,118500.0,118490.0,0.001]
[1753359512175,1.44624169,118500.0,118490.0,0.001]
[1753359512374,2.04480169,118500.0,118490.0,0.02452]
[1753359513284,2.04480169,118500.0,118490.0,0.001]
[1753359513482,1.76294847,118500.0,118490.0,0.001]
[1753359513683,2.04480169,118500.0,118490.0,0.001]
[1753359513879,1.77480169,118500.0,118490.0,0.001]
[1753359514074,2.07480169,118500.0,118490.0,0.001]
[1753359514584,2.07539848,118500.0,118490.0,0.001]
[1753359514775,1.72543848,118500.0,118490.0,0.02452]
[1753359514975,2.03543848,118500.0,118490.0,0.02452]
[1753359516082,1.12683848,118500.0,118490.0,0.02452]
[1753359516379,1.36463848,118500.0,118490.0,0.6659091]
[1753359517377,0.93298263,118500.0,118490.0,0.6659091]
[1753359517882,0.26422263,118500.0,118490.0,0.94776232]
[1753359518280,1.14467585,118500.0,118490.0,0.49721]
[1753359518481,1.17962585,118500.0,118490.0,0.6659091]
[1753359518677,1.21812585,118500.0,118490.0,0.6659091]
[1753359519079,0.55271791,118500.0,118490.0,0.6659091]
[1753359519279,1.15131791,118500.0,118490.0,0.6659091]
[1753359519677,0.168671,118510.0,118500.0,0.3282884]
[1753359519990,0.168671,118510.0,118500.0,1.09324162]
[1753359520475,0.91822422,118510.0,118500.0,0.15541]
[1753359520680,1.04422947,118510.0,118500.0,0.08067]
[1753359520979,0.39237625,118510.0,118500.0,0.6648948]
[1753359521184,0.67422947,118510.0,118500.0,0.49621]
[1753359521388,1.28818947,118510.0,118500.0,0.49621]
[1753359521686,1.29118947,118510.0,118500.0,0.6648948]
[1753359522186,0.68022947,118510.0,118500.0,0.6648948]
[1753359522483,1.29298947,118510.0,118500.0,0.6648948]
[1753359522682,1.28998947,118510.0,118500.0,0.6648948]
[1753359522892,1.29198947,118510.0,118500.0,0.6648948]
[1753359523082,1.61198947,118510.0,118500.0,0.6648948]
[1753359523980,1.01013625,118510.0,118500.0,0.6648948]
[1753359524589,0.98588625,118510.0,118500.0,0.6648948]
[1753359524781,1.26773947,118510.0,118500.0,0.6648948]
[1753359525484,1.29198947,118510.0,118500.0,0.6648948]
[1753359525685,1.01013625,118510.0,118500.0,0.6648948]
[1753359526193,1.29198947,118510.0,118500.0,0.49621]